fUST/lending_fUST_20240418
["ID","MTS","AMOUNT","RATE_DAILY","PERIOD"]
[322827812,1713369904163,24900.0,8.783e-05,2]
[322828086,1713370238434,-157.5764134,9.739e-05,2]
[322828087,1713370238443,-161.84978394,9.74e-05,2]
[322828088,1713370238453,-521.0,9.741e-05,2]
[322828089,1713370238463,-151.67843205,9.742e-05,2]
[322828090,1713370238559,-317.44685284,9.742e-05,2]
[322828092,1713370238568,-1478.44314716,9.743e-05,2]
[322828094,1713370238580,-647.32245567,9.743e-05,2]
[322828095,1713370238589,-329.35470215,9.744e-05,2]
[322828096,1713370238598,-467.87279548,9.744e-05,2]
[322828097,1713370238608,-300.0,9.745e-05,2]
[322828098,1713370238617,-300.0,9.745e-05,2]
[322828099,1713370238626,-31262.99119214,9.745e-05,2]
[322828100,1713370238635,-154.84515485,9.746e-05,2]
[322828101,1713370238646,-351.3027513,9.746e-05,2]
[322828102,1713370238656,-361.60536711,9.746e-05,2]
[322828103,1713370238665,-7858.55367278,9.746e-05,2]
[322828104,1713370238675,-72389.02048931,9.746e-05,2]
[322828105,1713370238684,-154.84515485,9.747e-05,2]
[322828106,1713370238695,-623.0836212,9.747e-05,2]
[322828107,1713370238705,-1488.61335239,9.747e-05,2]
[322828108,1713370238714,-623.0836212,9.747e-05,2]
[322828109,1713370238723,-4983.41782725,9.767e-05,2]
[322828110,1713370238733,-348.22965155,9.795e-05,2]
[322828111,1713370238742,-154.87609912,9.835e-05,2]
[322828112,1713370238752,-155.67229745,9.837e-05,2]
[322828113,1713370238762,-154.90705577,9.837e-05,2]
[322828114,1713370238771,-282.92215931,9.837e-05,2]
[322828115,1713370238780,-411.69787507,9.837e-05,2]
[322828116,1713370238789,-473.43372313,9.848e-05,2]
[322828117,1713370238804,-59089.3083695,9.849e-05,2]
[322828118,1713370238814,-18386.21164246,9.85e-05,2]
[322828119,1713370238823,-1933.58973003,9.937e-05,2]
[322828120,1713370238833,-155.53036266,9.937e-05,2]
[322828121,1713370238843,-1310.15475715,0.0001,2]
[322828122,1713370238854,-200.14186773,0.0001,2]
[322828123,1713370238863,-420.0,0.0001072,2]
[322828124,1713370238873,-420.0,0.0001072,2]
[322828125,1713370238882,-587.0,0.00011791,2]
[322828126,1713370238891,-587.0,0.00011791,2]
[322828127,1713370238901,-823.0,0.00012971,2]
[322828128,1713370238910,-823.0,0.00012971,2]
[322828129,1713370238921,-348.22965153,0.00013246,2]
[322828130,1713370238930,-786.035752,0.00013699,2]
[322828131,1713370238940,-38213.9143037,0.00013699,2]
[322828132,1713370238949,-926.63477986,0.00014,2]
[322828133,1713370238958,-1152.0,0.00014268,2]
[322828134,1713370238967,-1152.0,0.00014268,2]
[322828135,1713370238977,-158.23147999,0.00015,2]
[322828136,1713370238986,-2096.98803724,0.00015,2]
[322828137,1713370238996,-156.84586358,0.00015,2]
[322828138,1713370239005,-783.87866091,0.00015,2]
[322828139,1713370239014,-937.89373734,0.00015,2]
[322828140,1713370239023,-154.86062544,0.00015,2]
[322828141,1713370239033,-167.32835926,0.00015,2]
[322828142,1713370239047,-154.84515485,0.00015,2]
[322828143,1713370239056,-1613.0,0.00015694,2]
[322828144,1713370239065,-506.0,0.00015694,2]
[322828145,1713370239075,-348.22965153,0.00016798,2]
[322828146,1713370239084,-2258.0,0.00017264,2]
[322828147,1713370239094,-580.22150395,0.00018,2]
[322828148,1713370239104,-602.61216035,0.000185,2]
[322828149,1713370239114,-5698.08803568,0.000189,2]
[322828150,1713370239125,-188.96976676,0.0001897,2]
[322828151,1713370239136,-3162.0,0.0001899,2]
[322828152,1713370239146,-159.11486178,0.00019,2]
[322828153,1713370239156,-1000.0,0.00019,2]
[322828154,1713370239167,-500.0,0.00019178,2]
[322828155,1713370239177,-500.0,0.00019178,2]
[322828156,1713370239186,-535.30228014,0.00019178,2]
[322828157,1713370239195,-188.43093786,0.00019178,2]
[322828158,1713370239205,-356.09971144,0.00019178,2]
[322828159,1713370239214,-500.0,0.00019178,2]
[322828160,1713370239223,-488.73497698,0.00019178,2]
[322828161,1713370239232,-205.37435911,0.00019178,2]
[322828162,1713370239242,-265.39770589,0.00019178,2]
[322828163,1713370239251,-266.7220136,0.00019178,2]
[322828164,1713370239261,-178.00211012,0.00019178,2]
[322828165,1713370239270,-439.67218834,0.00019178,2]
[322828166,1713370239280,-599.87704222,0.00019178,2]
[322828167,1713370239289,-500.0,0.00019178,2]
[322828168,1713370239303,-645.20970026,0.00019178,2]
[322828169,1713370239312,-500.0,0.00019178,2]
[322828170,1713370239322,-500.0,0.00019178,2]
[322828171,1713370239331,-500.0,0.00019178,2]
[322828172,1713370239340,-500.0,0.00019178,2]
[322828173,1713370239350,-500.0,0.00019178,2]
[322828174,1713370239359,-500.0,0.00019178,2]
[322828175,1713370239369,-488.66316134,0.00019178,2]
[322828176,1713370239378,-500.0,0.00019178,2]
[322828177,1713370239388,-223.78588268,0.00019178,2]
[322828178,1713370239398,-500.0,0.00019178,2]
[322828179,1713370239408,-500.0,0.00019178,2]
[322828180,1713370239417,-500.0,0.00019178,2]
[322828181,1713370239427,-348.36923201,0.00019178,2]
[322828182,1713370239436,-500.0,0.00019178,2]
[322828183,1713370239445,-500.0,0.00019178,2]
[322828184,1713370239455,-500.0,0.00019178,2]
[322828185,1713370239464,-500.0,0.00019178,2]
[322828186,1713370239473,-500.0,0.00019178,2]
[322828187,1713370239482,-500.0,0.00019178,2]
[322828188,1713370239492,-500.0,0.00019178,2]
[322828189,1713370239501,-500.0,0.00019178,2]
[322828190,1713370239511,-500.0,0.00019178,2]
[322828191,1713370239520,-500.0,0.00019178,2]
[322828192,1713370239529,-500.0,0.00019178,2]
[322828193,1713370239539,-500.0,0.00019178,2]
[322828194,1713370239552,-327.78737273,0.00019178,2]
[322828195,1713370239562,-375.41455169,0.00019178,2]
[322828196,1713370239573,-502.35629309,0.00019178,2]
[322828197,1713370239584,-495.98580602,0.00019178,2]
[322828198,1713370239594,-493.31702264,0.00019178,2]
[322828199,1713370239605,-500.0,0.00019178,2]
[322828200,1713370239615,-491.91943766,0.00019178,2]
[322828201,1713370239626,-464.61298707,0.00019178,2]
[322828202,1713370239636,-168.397382,0.00019178,2]
[322828203,1713370239650,-154.89156971,0.0002,2]
[322828204,1713370239659,-10102.36070328,0.0002,2]
[322828205,1713370239669,-241.20667916,0.0002,2]
[322828206,1713370239679,-523.80732363,0.0002,4]
[322828207,1713370239691,-688.59429255,0.0002,2]
[322828208,1713370239700,-354.39971412,0.0002,2]
[322828209,1713370239711,-521.03498526,0.0002,2]
[322828210,1713370239720,-400.0,0.0002,2]
[322828211,1713370239730,-39399.56231816,0.0002,2]
[322828212,1713370239740,-1681.59050867,0.0002,2]
[322828213,1713370239749,-20000.0,0.0002,5]
[322828214,1713370239759,-277.60171443,0.0002,2]
[322828215,1713370239768,-237.92490957,0.0002,2]
[322828216,1713370239777,-154.86062544,0.0002,2]
[322828217,1713370239787,-155.50621329,0.0002,2]
[322828218,1713370239798,-155.04549281,0.0002,2]
[322828219,1713370239807,-200.0,0.0002,2]
[322828220,1713370239817,-348.22965153,0.00020349,2]
[322828221,1713370239828,-2297.22955653,0.000205,5]
[322828222,1713370239837,-786.035752,0.00020548,2]
[322828223,1713370239847,-4427.0,0.00020889,2]
[322828224,1713370239856,-3062.64298016,0.00021,2]
[322828225,1713370239865,-236.10567712,0.00021,2]
[322828226,1713370239875,-10000.0,0.00021,5]
[322828227,1713370239884,-537.84309983,0.00021,7]
[322828228,1713370239893,-52779.08583406,0.00021,2]
[322828229,1713370239903,-196.86420154,0.00021,2]
[322828230,1713370239912,-1081.27122192,0.00021,2]
[322828232,1713370239921,-611.8741466,0.00021918,2]
[322828233,1713370239931,-158.857458,0.00022,2]
[322828235,1713370239940,-243.24834116,0.00023,2]
[322828236,1713370239949,-810.36967436,0.00023584,2]
[322828237,1713370239959,-348.22965153,0.000239,2]
[322828238,1713370239968,-5698.08803568,0.000239,2]
[322828239,1713370239977,-120573.14122696,0.00024,7]
[322828240,1713370239987,-5302.0,0.00024,2]
[322828254,1713370240085,-5833.2338895,0.00024658,10]
[322828257,1713370240096,-200.0,0.00024658,2]
[322828260,1713370240105,-205.5969494,0.00024658,2]
[322828263,1713370240114,-200.0,0.00024658,15]
[322828265,1713370240124,-629.51848372,0.00024763,2]
[322828267,1713370240133,-154.86062544,0.00025,2]
[322828269,1713370240142,-1014.05523176,0.00025,2]
[322828271,1713370240151,-417.0,0.00025733,2]
[322828273,1713370240160,-620.47592419,0.00026001,2]
[322828274,1713370240169,-3092.98102596,0.000268,2]
[322828276,1713370240178,-2204.74406073,0.000268,2]
[322828279,1713370240187,-8507.18295185,0.00027,2]
[322828282,1713370240197,-154.86062544,0.00027,2]
[322828285,1713370240206,-332.07459253,0.00027,2]
[322828288,1713370240215,-13650.50995099,0.00027,2]
[322828290,1713370240224,-3999.75123629,0.00027297,2]
[322828292,1713370240233,-620.02379621,0.00027301,2]
[322828294,1713370240242,-500.0,0.00027397,2]
[322828296,1713370240251,-500.0,0.00027397,2]
[322828298,1713370240260,-500.0,0.00027397,2]
[322828300,1713370240269,-500.0,0.00027397,2]
[322828302,1713370240279,-500.0,0.00027397,2]
[322828304,1713370240288,-351.15405363,0.00027397,2]
[322828306,1713370240301,-500.0,0.00027397,2]
[322828308,1713370240311,-500.0,0.00027397,2]
[322828310,1713370240319,-500.0,0.00027397,2]
[322828312,1713370240328,-500.0,0.00027397,2]
[322828314,1713370240337,-500.0,0.00027397,2]
[322828316,1713370240346,-500.0,0.00027397,2]
[322828318,1713370240355,-500.0,0.00027397,2]
[322828320,1713370240364,-216.2349851,0.00027397,2]
[322828322,1713370240373,-500.0,0.00027397,2]
[322828324,1713370240382,-435.0,0.00027397,2]
[322828326,1713370240392,-500.0,0.00027397,2]
[322828328,1713370240400,-500.0,0.00027397,2]
[322828330,1713370240410,-392.4509842,0.00027397,2]
[322828332,1713370240420,-500.0,0.00027397,2]
[322828334,1713370240429,-500.0,0.00027397,2]
[322828336,1713370240438,-500.0,0.00027397,2]
[322828338,1713370240447,-558.57514092,0.00027397,2]
[322828340,1713370240456,-500.0,0.00027397,2]
[322828342,1713370240465,-500.0,0.00027397,2]
[322828344,1713370240474,-500.0,0.00027397,2]
[322828346,1713370240483,-500.0,0.00027397,2]
[322828348,1713370240492,-500.0,0.00027397,2]
[322828350,1713370240501,-422.869155,0.00027397,2]
[322828352,1713370240510,-166.666666,0.00027397,2]
[322828354,1713370240519,-1000.0,0.00027397,2]
[322828356,1713370240528,-755.44188678,0.000274,2]
[322828358,1713370240537,-974.17573871,0.000274,2]
[322828360,1713370240549,-38188.96181052,0.000275,2]
[322828362,1713370240558,-800.8369821,0.000275,17]
[322828364,1713370240567,-249.46520735,0.00027896,2]
[322828366,1713370240577,-776.6834283,0.00027897,2]
[322828368,1713370240587,-269.41883597,0.00027897,2]
[322828370,1713370240597,-2578.27219094,0.00027898,2]
[322828372,1713370240606,-156.09461942,0.00027898,2]
[322828374,1713370240616,-154.86062853,0.00027898,2]
[322828376,1713370240625,-370.29853164,0.00027898,2]
[322828378,1713370240635,-208.36724756,0.00027899,2]
[322828380,1713370240644,-1028.97723922,0.00027899,2]
[322828382,1713370240654,-563.09797172,0.00027899,2]
[322828384,1713370240667,-80000.0,0.00028,2]
[322828386,1713370240676,-166.666666,0.00028038,2]
[322828388,1713370240685,-1318.68708917,0.000285,2]
[322828390,1713370240695,-620.03229249,0.00028595,2]
[322828392,1713370240705,-620.00118981,0.00028666,2]
[322828394,1713370240714,-166.666666,0.00028679,2]
[322828396,1713370240723,-417.0,0.00028733,2]
[322828398,1713370240733,-3729.33559342,0.0002877,2]
[322828400,1713370240742,-5698.08803568,0.000289,2]
[322828402,1713370240751,-5000.0,0.00029,2]
[322828404,1713370240760,-37148.5041405,0.00029,2]
[322828406,1713370240768,-166.666666,0.00029321,2]
[322828408,1713370240777,-1790.54442132,0.0002978,10]
[322828410,1713370240786,-1532.93270246,0.0002985,30]
[322828412,1713370240798,-744.86049233,0.0002985,30]
[322828414,1713370240807,-3756.02912794,0.0002985,30]
[322828416,1713370240816,-5313.02764777,0.000299,2]
[322828418,1713370240825,-525.11720076,0.000299,2]
[322828420,1713370240837,-525.11720074,0.000299,2]
[322828422,1713370240846,-525.11720074,0.000299,2]
[322828424,1713370240855,-525.11720074,0.000299,2]
[322828426,1713370240864,-525.11720074,0.000299,2]
[322828428,1713370240873,-525.11720074,0.000299,2]
[322828430,1713370240882,-525.11720074,0.000299,2]
[322828432,1713370240891,-525.11720074,0.000299,2]
[322828434,1713370240900,-166.666666,0.00029962,2]
[322828436,1713370240910,-190.43520688,0.0003,4]
[322828438,1713370240919,-258.39586582,0.0003,4]
[322828440,1713370240928,-1351.51924304,0.0003,4]
[322828442,1713370240937,-4848.21770199,0.0003,5]
[322828444,1713370240947,-154.86062544,0.0003,2]
[322828446,1713370240956,-323452.88757406,0.0003,2]
[322828448,1713370240966,-1832.47502662,0.0003,2]
[322828450,1713370240975,-576.00236236,0.0003,2]
[322828452,1713370240984,-5594.34889524,0.0003,7]
[322828454,1713370240994,-154.84515485,0.0003,4]
[322828456,1713370241003,-151.0,0.0003,2]
[322828458,1713370241013,-151.0,0.0003,2]
[322828460,1713370241022,-151.0,0.0003,2]
[322828462,1713370241031,-151.0,0.0003,2]
[322828464,1713370241040,-151.0,0.0003,2]
[322828467,1713370241052,-151.0,0.0003,2]
[322828468,1713370241061,-1626.560535,0.0003,2]
[322828471,1713370241071,-1626.560535,0.0003,2]
[322828472,1713370241080,-152.874669,0.0003,2]
[322828475,1713370241089,-151.0,0.0003,2]
[322828476,1713370241098,-158.870567,0.0003,2]
[322828478,1713370241107,-151.0,0.0003,2]
[322828481,1713370241116,-6641.672479,0.0003,2]
[322828482,1713370241125,-6641.672479,0.0003,2]
[322828484,1713370241134,-1102.474548,0.0003,2]
[322828486,1713370241143,-1102.474548,0.0003,2]
[322828488,1713370241152,-151.826352,0.0003,2]
[322828490,1713370241161,-151.826352,0.0003,2]
[322828492,1713370241170,-151.0,0.0003,2]
[322828494,1713370241180,-225.0,0.0003,2]
[322828497,1713370241190,-151.0,0.0003,2]
[322828499,1713370241199,-186.037288,0.0003,2]
[322828500,1713370241208,-186.037288,0.0003,2]
[322828503,1713370241219,-3243.820919,0.0003,2]
[322828505,1713370241228,-620.00005949,0.000301,2]
[322828507,1713370241237,-183.834254,0.00030137,2]
[322828509,1713370241246,-183.834254,0.00030137,120]
[322828511,1713370241255,-166.666666,0.00030603,2]
[322828513,1713370241264,-320.4553623,0.000308,10]
[322828515,1713370241273,-1961.92360376,0.00031,2]
[322828517,1713370241282,-586.0,0.000316,2]
[322828519,1713370241291,-620.00000297,0.00031605,2]
[322828521,1713370241305,-417.0,0.00031733,2]
[322828522,1713370241314,-3000.0,0.00032,2]
[322828524,1713370241323,-191.18536531,0.00032,4]
[322828526,1713370241333,-1122.530758,0.00032877,2]
[322828529,1713370241343,-1122.530758,0.00032877,2]
[322828530,1713370241352,-400.0,0.00032877,2]
[322828532,1713370241361,-5200.0,0.000329,9]
[322828534,1713370241371,-225.0,0.00033,2]
[322828537,1713370241380,-225.0,0.00033,2]
[322828538,1713370241389,-422.869155,0.00033165,2]
[322828541,1713370241399,-620.00000015,0.00033185,2]
[322828543,1713370241409,-4405.0,0.00033303,35]
[322828545,1713370241418,-230.0,0.00033303,35]
[322828547,1713370241427,-4405.0,0.00033313,35]
[322828549,1713370241435,-230.0,0.00033313,35]
[322828551,1713370241444,-156.6192828,0.0003332,2]
[322828553,1713370241453,-4405.0,0.00033323,35]
[322828555,1713370241462,-230.0,0.00033323,35]
[322828557,1713370241472,-151.0,0.00033333,2]
[322828559,1713370241481,-151.0,0.00033333,2]
[322828561,1713370241492,-151.0,0.00033333,2]
[322828563,1713370241504,-151.0,0.00033333,2]
[322828565,1713370241513,-151.0,0.00033333,2]
[322828567,1713370241522,-1302.867708,0.00033333,2]
[322828569,1713370241532,-1302.867708,0.00033333,2]
[322828578,1713370241541,-824.730203,0.00033333,2]
[322828580,1713370241627,-1634.452336,0.00033333,2]
[322828582,1713370241636,-824.730203,0.00033333,2]
[322828584,1713370241647,-1634.452336,0.00033333,2]
[322828586,1713370241657,-181.305264,0.00033333,2]
[322828588,1713370241666,-181.305264,0.00033333,2]
[322828590,1713370241675,-454.790866,0.00033333,2]
[322828592,1713370241685,-454.790866,0.00033333,2]
[322828594,1713370241694,-151.0,0.00033333,2]
[322828596,1713370241703,-151.0,0.00033333,2]
[322828598,1713370241712,-442.25,0.00033333,2]
[322828600,1713370241721,-442.25,0.00033333,2]
[322828602,1713370241731,-151.0,0.00033333,2]
[322828604,1713370241741,-151.0,0.00033333,2]
[322828606,1713370241751,-151.0,0.00033333,2]
[322828608,1713370241760,-151.0,0.00033333,2]
[322828610,1713370241769,-151.0,0.00033333,2]
[322828612,1713370241778,-151.0,0.00033333,2]
[322828614,1713370241787,-1626.560535,0.00033333,2]
[322828617,1713370241800,-1626.560535,0.00033333,2]
[322828619,1713370241810,-151.0,0.00033333,2]
[322828620,1713370241819,-151.826602,0.00033333,2]
[322828622,1713370241829,-6641.672479,0.00033333,2]
[322828625,1713370241838,-6641.672479,0.00033333,2]
[322828626,1713370241847,-1102.474548,0.00033333,2]
[322828628,1713370241857,-1102.474548,0.00033333,2]
[322828630,1713370241866,-151.826352,0.00033333,2]
[322828632,1713370241876,-151.826352,0.00033333,2]
[322828634,1713370241885,-289.834412,0.00033333,2]
[322828637,1713370241895,-1122.530758,0.00033333,2]
[322828639,1713370241904,-1122.530758,0.00033333,2]
[322828641,1713370241914,-151.0,0.00033333,2]
[322828643,1713370241924,-186.037288,0.00033333,2]
[322828645,1713370241933,-186.037288,0.00033333,2]
[322828646,1713370241942,-586577.02103514,0.00033333,7]
[322828719,1713370242645,-173.04289703,9.739e-05,2]
[322828721,1713370242656,-408.43488901,9.739e-05,2]
[322828723,1713370242666,-1775.61272508,9.744e-05,2]
[322828725,1713370242677,-3243.820919,0.00033333,2]
[322828727,1713370242687,-10731.97911388,0.00033333,7]
[322828737,1713370242777,-4003.44303719,0.00033333,7]
[322828821,1713370243739,-525.11720074,0.000299,2]
[322828822,1713370243748,-3243.820919,0.0003,2]
[322828823,1713370243757,-3243.820919,0.00033333,2]
[322828825,1713370243767,-3252.44225617,0.00033333,7]
[322828834,1713370243861,-5985.5,0.00033333,7]
[322828836,1713370243873,-1195.0,0.00033333,7]
[322828854,1713370244124,-7.16861065,0.00033333,7]
[322828921,1713370452738,-2948.96689228,0.0003488,120]
[322828922,1713370452914,-5398.350034,0.00035616,120]
[322828923,1713370452941,-168.33,0.00036906,120]
[322828924,1713370453506,-857.0,0.00038,120]
[322828925,1713370453535,-209.76912937,0.0004,120]
[322828926,1713370453560,-199.9562266,0.0004,120]
[322828927,1713370453583,-156.09787545,0.00041,120]
[322828928,1713370453607,-5398.350034,0.00041553,120]
[322828929,1713370453629,-443.64219832,0.00042,120]
[322828930,1713370453650,-1266.80750704,0.00042,120]
[322828931,1713370453918,-1428.75715095,0.00042,120]
[322828932,1713370454292,-517.70264019,0.000424,120]
[322828933,1713370454320,-4880.64739381,0.00045,120]
[322828934,1713370454929,-3650.97557697,0.00045,120]
[322828935,1713370454952,-242772.70765213,0.0004698,120]
[322828936,1713370456178,-3650.97557697,0.0004698,120]
[322828937,1713370456200,-5398.350034,0.00047489,120]
[322828938,1713370456221,-948.25242556,0.00048,120]
[322828940,1713370600924,183.834254,0.00030137,120]
[322828941,1713370667387,333.86838619,0.00035616,120]
[322828942,1713370667408,1015.71912181,0.00035616,120]
[322828943,1713370667663,694.73058355,0.00041553,120]
[322828945,1713371340963,208.563198,0.00030137,120]
[322828946,1713371411264,838.507985,0.00035616,120]
[322828962,1713371433018,-469.12528489,0.00011104,2]
[322828963,1713371433031,-916.45118869,0.00011105,2]
[322828964,1713371433139,-1209.31441414,0.00011105,2]
[322828965,1713371433149,-882.7275178,0.00011105,2]
[322828966,1713371433159,-167.52776302,0.00011106,2]
[322828967,1713371433168,-1310.15475715,0.00011106,2]
[322828968,1713371433178,-351.3027513,0.00011107,2]
[322828969,1713371433187,-408.43488901,0.00011108,2]
[322828970,1713371433198,-300.0,0.00011109,2]
[322828971,1713371433207,-300.0,0.00011109,2]
[322828972,1713371433217,-7858.55367278,0.0001111,2]
[322828973,1713371433230,-59089.3083695,0.0001111,2]
[322828974,1713371433240,-18760.40516714,0.00011114,2]
[322829020,1713371438754,-467.87279548,0.00011103,2]
[322829021,1713371438763,-329.35470215,0.00011103,2]
[322829022,1713371438773,-53628.61532217,0.00011114,2]
[322829023,1713371438783,-208.36724756,0.00011118,2]
[322829024,1713371438792,-154.86062853,0.00011118,2]
[322829025,1713371438802,-249.46520735,0.00011118,2]
[322829026,1713371438812,-563.09797172,0.00011118,2]
[322829027,1713371438821,-776.6834283,0.00011118,2]
[322829028,1713371438831,-2578.27219094,0.00011119,2]
[322829029,1713371438840,-370.29853164,0.00011119,2]
[322829031,1713371438849,-156.09461942,0.00011119,2]
[322829033,1713371438858,-154.84515485,0.00011121,2]
[322829035,1713371438867,-525.74547902,0.00011122,2]
[322829036,1713371438876,-2948.9335164,0.00011134,2]
[322829037,1713371438885,-767.11419247,0.00012136,2]
[322829038,1713371438895,-1335.89676081,0.000129,2]
[322829039,1713371438904,-767.11419247,0.00013496,2]
[322829040,1713371438913,-12846.9070112,0.00013699,2]
[322829041,1713371438923,-739.4475524,0.00013699,2]
[322829042,1713371438932,-2846.48608,0.00013699,2]
[322829043,1713371438942,-2106.7291461,0.00013699,2]
[322829044,1713371438951,-926.63477986,0.00014,2]
[322829045,1713371438960,-937.89373734,0.00015,2]
[322829046,1713371438969,-783.87866091,0.00015,2]
[322829047,1713371438979,-156.84586358,0.00015,2]
[322829048,1713371438992,-2096.98803724,0.00015,2]
[322829049,1713371439002,-154.86062544,0.00015,2]
[322829050,1713371439011,-602.61216035,0.000185,2]
[322829051,1713371439024,-1743.67345875,0.000189,2]
[322829052,1713371439033,-188.96976676,0.0001897,2]
[322829053,1713371439044,-290.99969794,0.00019,2]
[322829054,1713371439056,-1000.0,0.00019,2]
[322829055,1713371439066,-500.0,0.00019178,2]
[322829056,1713371439075,-276.51812904,0.00019178,2]
[322829057,1713371439084,-500.0,0.00019178,2]
[322829058,1713371439094,-500.0,0.00019178,2]
[322829059,1713371439104,-464.68617627,0.00019178,2]
[322829060,1713371439113,-251.09971143,0.00019178,2]
[322829061,1713371439122,-169.766033,0.00019178,2]
[322829062,1713371439131,-188.6288603,0.00019898,2]
[322829063,1713371439140,-7518.91104748,0.0002,5]
[322829064,1713371439150,-154.84515485,0.0002,2]
[322829065,1713371439159,-688.59429255,0.0002,2]
[322829066,1713371439168,-523.80732363,0.0002,4]
[322829067,1713371439178,-354.39971412,0.0002,2]
[322829068,1713371439188,-277.60171443,0.0002,2]
[322829069,1713371439197,-521.03498526,0.0002,2]
[322829070,1713371439207,-400.0,0.0002,2]
[322829071,1713371439221,-241.20667916,0.0002,2]
[322829072,1713371439266,-200.0,0.0002,2]
[322829073,1713371439275,-2846.48608,0.00020548,2]
[322829074,1713371439285,-1335.89676074,0.00021452,2]
[322829075,1713371439296,-158.857458,0.00022,2]
[322829076,1713371439305,-1044.6889546,0.00022635,2]
[322829077,1713371439315,-243.24834116,0.00023,2]
[322829078,1713371439324,-273.69147795,0.00023998,2]
[322829079,1713371439334,-154.87609912,0.00023998,2]
[322829080,1713371439344,-211.83113783,0.00023999,2]
[322829081,1713371439354,-200.0,0.00024658,15]
[322829082,1713371439365,-417.0,0.00025052,2]
[322829083,1713371439375,-8507.18295185,0.00027,2]
[322829084,1713371439385,-154.84515485,0.00027,2]
[322829085,1713371439395,-332.07459253,0.00027,2]
[322829086,1713371439405,-500.0,0.00027397,2]
[322829087,1713371439417,-500.0,0.00027397,2]
[322829088,1713371439426,-500.0,0.00027397,2]
[322829089,1713371439435,-500.0,0.00027397,2]
[322829090,1713371439445,-500.0,0.00027397,2]
[322829091,1713371439454,-500.0,0.00027397,2]
[322829092,1713371439464,-500.0,0.00027397,2]
[322829093,1713371439473,-500.0,0.00027397,2]
[322829094,1713371439485,-500.0,0.00027397,2]
[322829095,1713371439495,-500.0,0.00027397,2]
[322829096,1713371439504,-500.0,0.00027397,2]
[322829097,1713371439513,-500.0,0.00027397,2]
[322829098,1713371439522,-500.0,0.00027397,2]
[322829099,1713371439531,-500.0,0.00027397,2]
[322829100,1713371439541,-500.0,0.00027397,2]
[322829101,1713371439550,-500.0,0.00027397,2]
[322829102,1713371439559,-500.0,0.00027397,2]
[322829103,1713371439568,-500.0,0.00027397,2]
[322829104,1713371439577,-500.0,0.00027397,2]
[322829105,1713371439586,-453.41516385,0.00027397,2]
[322829106,1713371439595,-500.0,0.00027397,2]
[322829107,1713371439605,-500.0,0.00027397,2]
[322829108,1713371439615,-500.0,0.00027397,2]
[322829109,1713371439624,-500.0,0.00027397,2]
[322829110,1713371439634,-500.0,0.00027397,2]
[322829111,1713371439643,-240.502576,0.00027397,2]
[322829112,1713371439652,-166.666666,0.00027397,2]
[322829113,1713371439661,-1000.0,0.00027397,2]
[322829114,1713371439670,-800.8369821,0.000275,17]
[322829115,1713371439680,-1044.6889546,0.00027934,2]
[322829116,1713371439690,-80000.0,0.00028,2]
[322829117,1713371439699,-166.666666,0.00028038,2]
[322829118,1713371439708,-417.0,0.00028052,2]
[322829119,1713371439804,-166.666666,0.00028679,2]
[322829120,1713371439814,-5000.0,0.00029,2]
[322829121,1713371439824,-103254.36422759,0.00029,2]
[322829122,1713371439833,-166.666666,0.00029321,2]
[322829123,1713371439842,-5776.28920814,0.000299,2]
[322829124,1713371439852,-810.40029275,0.00029943,2]
[322829125,1713371439861,-166.666666,0.00029962,2]
[322829126,1713371439870,-154.84515485,0.0003,2]
[322829127,1713371439880,-154.84515485,0.0003,4]
[322829128,1713371439889,-154.84515485,0.0003,4]
[322829129,1713371439898,-441.0,0.0003,2]
[322829130,1713371439907,-154.84515485,0.0003,4]